[Event "WCCC U10 2019"]
[Site "Weifang"]
[Date "2019.08.29"]
[Round "8.6"]
[White "Xie, Bryan"]
[Black "Mayank Chakraborty"]
[Result "0-1"]
[ECO "B88"]
[WhiteElo "1696"]
[BlackElo "1731"]
[Annotator "NA"]
[PlyCount "120"]
[EventDate "2019.08.21"]
[EventType "swiss"]
[EventCountry "CHN"]
[SourceTitle "playchess.com"]
[Source "ChessBase"]
[SourceQuality "1"]
[TimeControl "40/5400+30:1800+30"]

1. e4 {[%emt 0:00:00]} c5 {[%emt 0:00:06]} 2. Nf3 {[%emt 0:00:00]} d6 {[%emt 0:00:00]} 3. d4 {[%emt 0:00:00]} cxd4 {[%emt 0:00:00]} 4. Nxd4 {[%emt 0:00:00]} Nf6 {[%emt 0:00:00]} 5. Nc3 {[%emt 0:00:03]} Nc6 {[%emt 0:00:08]} 6. Bc4 {[%emt 0:00:58]} e6 {[%emt 0:00:03]} 7. O-O {[%emt 0:00:33]} Be7 {[%emt 0:01:49]} 8. Bb3 {[%emt 0:01:53]} O-O {[%emt 0:00:00]} 9. Be3 {[%emt 0:02:55]} a6 {[%emt 0:00:00]} 10. f4 {[%emt 0:02:10]} Na5 {[%emt 0:04:51]} 11. Qf3 {[%emt 0:03:27]} Nxb3 {[%emt 0:00:21]} 12. Nxb3 {[%emt 0:00:51]} Qc7 {[%emt 0:03:10]} 13. Rad1 {[%emt 0:05:24]} b5 {[%emt 0:10:16]} 14. a3 {[%emt 0:07:14]} Bb7 {[%emt 0:00:16]} 15. Bd4 {[%emt 0:03:53]} e5 {[%emt 0:03:20]} 16. Be3 {[%emt 0:00:30]} Rac8 {[%emt 0:00:43]} 17. Rd2 {[%emt 0:01:03]} Qb8 {[%emt 0:01:30]} 18. fxe5 {[%emt 0:02:24]} dxe5 {[%emt 0:00:07]} 19. Nd5 {[%emt 0:01:02]} Nxd5 {[%emt 0:02:18]} 20. exd5 {[%emt 0:00:07]} Qd6 {[%emt 0:01:20]} 21. Na5 {[%emt 0:07:06]} Ba8 {[%emt 0:00:30]} 22. Qf2 {[%emt 0:02:49]} f5 {[%emt 0:03:25]} 23. b4 {[%emt 0:00:37]} Qg6 {[%emt 0:18:01]} 24. Bc5 {[%emt 0:03:22]} Bd6 {[%emt 0:04:51]} 25. c4 {[%emt 0:00:35]} Rf6 {[%emt 0:08:14]} 26. Rfd1 {[%emt 0:08:17]} Qf7 {[%emt 0:03:17]} 27. Nc6 {[%emt 0:03:54]} bxc4 {[%emt 0:05:56]} 28. Bxd6 {[%emt 0:00:55]} Rxd6 {[%emt 0:00:03]} 29. Qc5 {[%emt 0:00:21]} Bxc6 {[%emt 0:08:31]} 30. Qxd6 {[%emt 0:00:27]} c3 {[%emt 0:01:35]} 31. Re2 {[%emt 0:03:57]} Ba4 {[%emt 0:08:31]} 32. Rc1 {[%emt 0:03:58]} e4 {[%emt 0:00:00]} 33. Qxa6 {[%emt 0:09:24]} Qd7 {[%emt 0:00:00]} 34. Qe6+ {[%emt 0:02:44]} Qxe6 {[%emt 0:00:00]} 35. dxe6 {[%emt 0:00:04]} g6 {[%emt 0:00:00]} 36. Kf2 {[%emt 0:01:57]} Kg7 {[%emt 0:00:00]} 37. Ke3 {[%emt 0:01:07]} Kf6 {[%emt 0:00:00]} 38. Kd4 {[%emt 0:01:05]} c2 {[%emt 0:00:00]} 39. Kd5 {[%emt 0:06:47]} Rc3 {[%emt 0:00:00]} 40. b5 {[%emt 0:01:44]} Rxa3 {[%emt 0:03:08]} 41. b6 {[%emt 0:33:12]} Rb3 {[%emt 0:31:58]} 42. g4 {[%emt 0:00:00]} Rb5+ {[%emt 0:00:00]} 43. Kd4 {[%emt 0:00:00]} Rxb6 {[%emt 0:00:00]} 44. gxf5 {[%emt 0:00:00]} gxf5 {[%emt 0:00:00]} 45. e7 {[%emt 0:00:00]} Kxe7 {[%emt 0:00:00]} 46. Ke5 {[%emt 0:00:00]} Rb5+ {[%emt 0:00:00]} 47. Kf4 {[%emt 0:00:00]} Kf6 {[%emt 0:00:00]} 48. Rexc2 {[%emt 0:00:00]} Bxc2 {[%emt 0:00:00]} 49. Rxc2 {[%emt 0:00:00]} Re5 {[%emt 0:00:00]} 50. Rc6+ {[%emt 0:00:00]} Re6 {[%emt 0:00:00]} 51. Rc5 {[%emt 0:00:00]} e3 {[%emt 0:00:00]} 52. Rc1 {[%emt 0:00:00]} Re4+ {[%emt 0:00:00]} 53. Kf3 {[%emt 0:00:00]} Ke5 {[%emt 0:00:00]} 54. Ke2 {[%emt 0:00:00]} Kf4 {[%emt 0:00:00]} 55. Rc7 {[%emt 0:00:00]} Ra4 {[%emt 0:00:15]} 56. Rxh7 {[%emt 0:00:17]} Ra2+ 57. Ke1 {[%emt 0:00:00]} Kf3 {[%emt 0:00:00]} 58. Rh3+ {[%emt 0:00:00]} Ke4 {[%emt 0:00:00]} 59. Rh8 {[%emt 0:00:00]} f4 {[%emt 0:00:00]} 60. Rh7 {[%emt 0:00:00]} f3 {[%emt 0:01:29]} 0-1

[Event "WCCC U10 2019"]
[Site "Weifang"]
[Date "2019.08.29"]
[Round "8.7"]
[White "Chennareddy, Yuvraj"]
[Black "Mamedov, Edgar"]
[Result "0-1"]
[ECO "B01"]
[WhiteElo "1727"]
[BlackElo "1714"]
[Annotator "NA"]
[PlyCount "108"]
[EventDate "2019.08.21"]
[EventType "swiss"]
[EventCountry "CHN"]
[SourceTitle "playchess.com"]
[Source "ChessBase"]
[SourceQuality "1"]
[TimeControl "40/5400+30:1800+30"]

1. e4 {[%emt 0:00:00]} d5 {[%emt 0:00:00]} 2. exd5 {[%emt 0:00:00]} Qxd5 {[%emt 0:00:00]} 3. Nc3 {[%emt 0:00:11]} Qa5 {[%emt 0:00:02]} 4. d4 {[%emt 0:00:23]} Nf6 {[%emt 0:00:27]} 5. Nf3 {[%emt 0:00:34]} Bf5 {[%emt 0:00:41]} 6. Ne5 {[%emt 0:01:20]} c6 {[%emt 0:00:37]} 7. g4 {[%emt 0:13:09]} Be6 {[%emt 0:02:06]} 8. Bc4 {[%emt 0:03:13]} Bxc4 {[%emt 0:08:51]} 9. Nxc4 {[%emt 0:00:13]} Qc7 {[%emt 0:04:01]} 10. Qe2 {[%emt 0:23:16]} e6 {[%emt 0:13:12]} 11. Ne4 {[%emt 0:18:31]} Nbd7 {[%emt 0:05:09]} 12. Bg5 {[%emt 0:02:50]} Be7 {[%emt 0:04:43]} 13. Nxf6+ {[%emt 0:07:34]} Nxf6 {[%emt 0:05:03]} 14. Ne5 {[%emt 0:06:22]} Nd5 {[%emt 0:07:33]} 15. Bxe7 {[%emt 0:04:20]} Qxe7 {[%emt 0:03:22]} 16. O-O-O {[%emt 0:00:16]} O-O-O {[%emt 0:02:01]} 17. c4 {[%emt 0:01:36]} Nb6 {[%emt 0:01:45]} 18. Rhe1 {[%emt 0:01:39]} f6 {[%emt 0:06:51]} 19. Nf3 {[%emt 0:04:18]} Rhe8 {[%emt 0:00:28]} 20. Qc2 {[%emt 0:01:28]} h6 {[%emt 0:04:26]} 21. Re4 {[%emt 0:01:08]} Qf7 {[%emt 0:05:53]} 22. Rde1 {[%emt 0:00:30]} Re7 {[%emt 0:03:50]} 23. Qe2 {[%emt 0:02:16]} Rde8 {[%emt 0:00:09]} 24. h4 {[%emt 0:02:59]} g5 {[%emt 0:03:43]} 25. hxg5 {[%emt 0:01:09]} hxg5 {[%emt 0:00:27]} 26. Qc2 {[%emt 0:00:45]} Kb8 {[%emt 0:00:47]} 27. a4 {[%emt 0:00:23]} Nd7 {[%emt 0:02:13]} 28. Qe2 {[%emt 0:01:37]} Nb6 {[%emt 0:00:41]} 29. a5 {[%emt 0:00:31]} Nc8 {[%emt 0:01:38]} 30. c5 {[%emt 0:00:30]} a6 {[%emt 0:01:05]} 31. Qc4 {[%emt 0:01:44]} Na7 {[%emt 0:00:35]} 32. Nd2 {[%emt 0:00:38]} Nb5 {[%emt 0:00:29]} 33. f4 {[%emt 0:00:07]} gxf4 {[%emt 0:02:05]} 34. Rxf4 {[%emt 0:00:18]} Nc7 {[%emt 0:01:32]} 35. g5 {[%emt 0:01:03]} Nd5 {[%emt 0:00:32]} 36. gxf6 {[%emt 0:00:28]} Nxf4 {[%emt 0:00:15]} 37. fxe7 {[%emt 0:00:05]} Qf5 {[%emt 0:01:10]} 38. Re3 {[%emt 0:01:01]} Rxe7 {[%emt 0:00:22]} 39. Qc2 {[%emt 0:00:21]} Qg5 {[%emt 0:02:28]} 40. Qe4 {[%emt 0:00:30]} Ka7 {[%emt 0:05:40]} 41. Rf3 {[%emt 0:04:00]} e5 {[%emt 0:07:39]} 42. Rf1 {[%emt 0:08:33]} exd4 {[%emt 0:03:14]} 43. Qxf4 {[%emt 0:05:00]} Re1+ {[%emt 0:00:09]} 44. Kc2 {[%emt 0:01:08]} Qxc5+ {[%emt 0:00:08]} 45. Kb3 {[%emt 0:00:24]} Re3+ {[%emt 0:00:09]} 46. Ka2 {[%emt 0:00:39]} Qxa5+ {[%emt 0:00:07]} 47. Kb1 {[%emt 0:00:10]} Qxd2 {[%emt 0:00:08]} 48. Qd6 {[%emt 0:01:03]} Qd3+ {[%emt 0:00:22]} 49. Ka2 {[%emt 0:00:12]} Qc4+ {[%emt 0:00:09]} 50. b3 {[%emt 0:00:10]} Qxb3+ {[%emt 0:00:16]} 51. Ka1 {[%emt 0:00:06]} Qa4+ {[%emt 0:00:13]} 52. Kb1 {[%emt 0:00:09]} Rb3+ {[%emt 0:00:05]} 53. Kc1 {[%emt 0:00:09]} Qc4+ {[%emt 0:00:06]} 54. Kd2 {[%emt 0:00:09]} Rb2+ {[%emt 0:00:06]} 0-1

[Event "WCCC U10 2019"]
[Site "Weifang"]
[Date "2019.08.29"]
[Round "8.8"]
[White "Juhanak, Daniel"]
[Black "Bharadia Yash"]
[Result "0-1"]
[ECO "D02"]
[WhiteElo "1526"]
[BlackElo "1963"]
[Annotator "NA"]
[PlyCount "94"]
[EventDate "2019.08.21"]
[EventType "swiss"]
[EventCountry "CHN"]
[SourceTitle "playchess.com"]
[Source "ChessBase"]
[SourceQuality "1"]
[TimeControl "40/5400+30:1800+30"]

1. d4 {[%emt 0:00:00]} Nf6 {[%emt 0:00:00]} 2. Nf3 {[%emt 0:00:00]} d5 {[%emt 0:00:13]} 3. Bf4 {[%emt 0:00:58]} e6 {[%emt 0:00:18]} 4. e3 {[%emt 0:00:47]} c5 {[%emt 0:00:39]} 5. c3 {[%emt 0:01:59]} Bd6 {[%emt 0:00:14]} 6. Bg3 {[%emt 0:00:47]} Nc6 {[%emt 0:00:16]} 7. Nbd2 {[%emt 0:01:32]} O-O {[%emt 0:00:39]} 8. Bd3 {[%emt 0:01:23]} Re8 {[%emt 0:03:45]} 9. Ne5 {[%emt 0:01:51]} Bxe5 {[%emt 0:04:29]} 10. dxe5 {[%emt 0:09:38]} Nd7 {[%emt 0:00:37] D02: 1 d4 d5 2 Nf3 sidelines, including 2...Nf6 3 g3 and 2...Nf6 3 Bf4} 11. f4 {[%emt 0:06:51]} ({Don't play} 11. Qh5 g6 $15) ({White should play} 11. Nf3 $11 Qc7 12. O-O g6 13. e4 dxe4 14. Bxe4 Ncxe5 15. Nxe5 Nxe5 16. f4 f5 17. fxe5 fxe4 18. Qg4 {½-½ (41) Gorovets,A (2496)-Li,C (2732) chess.com INT 2018}) 11... c4 {[%emt 0:00:55]} 12. Bc2 $1 {[%emt 0:22:44]} Qb6 $1 {[%emt 0:00:37]} 13. O-O $1 {[%emt 0:02:11]} Qxb2 {[%emt 0:01:18]} 14. Nf3 {[%emt 0:13:29]} h6 {[%emt 0:20:37]} 15. Qd2 {[%emt 0:03:06]} Qb6 {[%emt 0:01:20]} 16. Nd4 $146 {[%emt 0:05:49]} ({Predecessor:} 16. Rab1 Qc7 17. Bh4 Ne7 18. g4 Ng6 19. Bg3 a6 20. h4 Nc5 21. Qg2 Ne7 {½-½ (21) Camp,I (1823)-Sivarajasingam,S (1729) Cardiff 2017}) 16... a6 {[%emt 0:14:45]} 17. Bf2 {[%emt 0:04:34]} (17. Rab1 $14 Qc5 18. e4) 17... Nc5 {[%emt 0:15:04]} 18. e4 {[%emt 0:06:27]} Rd8 {[%emt 0:10:47]} (18... dxe4 $15 19. Rab1 Qd8) 19. Qe3 {[%emt 0:03:38]} (19. Nxc6 $16 Qxc6 20. f5) 19... Nxe4 {[%emt 0:10:04]} 20. Bxe4 {[%emt 0:02:17]} dxe4 {[%emt 0:00:09]} 21. Qxe4 {[%emt 0:00:44]} Nxd4 {[%emt 0:00:25]} 22. Bxd4 {[%emt 0:00:59]} Qb5 {[%emt 0:01:31]} 23. Rab1 {[%emt 0:03:10]} Qd5 {[%emt 0:01:14]} 24. Qe2 {[%emt 0:03:45]} b5 {[%emt 0:02:11]} 25. Rfd1 {[%emt 0:02:18]} Qc6 {[%emt 0:00:17]} 26. Qf2 {[%emt 0:00:47]} Bb7 {[%emt 0:00:26]} 27. Bc5 {[%emt 0:00:30]} Rd3 {[%emt 0:02:09]} 28. Bd4 {[%emt 0:01:05]} Rd8 {[%emt 0:01:43]} 29. Rxd3 {[%emt 0:00:22]} cxd3 {[%emt 0:00:25]} 30. Rd1 {[%emt 0:00:26]} Qc4 {[%emt 0:00:09]} 31. Qd2 {[%emt 0:00:34]} Be4 {[%emt 0:00:08]} 32. Qe3 {[%emt 0:00:36]} Bf5 {[%emt 0:00:38]} 33. Qd2 {[%emt 0:00:31]} Qd5 {[%emt 0:02:21]} 34. h3 {[%emt 0:00:30]} Rc8 {[%emt 0:00:18]} 35. a3 {[%emt 0:00:33]} Rc4 {[%emt 0:00:19]} 36. Qe3 {[%emt 0:00:34]} Ra4 {[%emt 0:00:54]} 37. Qc1 {[%emt 0:00:29]} Qa2 {[%emt 0:03:49]} 38. Bc5 {[%emt 0:00:30]} Qc4 {[%emt 0:00:30]} 39. Bd4 {[%emt 0:00:26]} Qb3 {[%emt 0:01:46]} 40. Bc5 {[%emt 0:00:20]} Kh7 {[%emt 0:00:30]} 41. Rf1 {[%emt 0:30:47]} Re4 {[%emt 0:06:59]} 42. Rf2 {[%emt 0:00:00]} Re2 {[%emt 0:06:32]} 43. Be3 {[%emt 0:00:00]} Be4 {[%emt 0:11:03]} 44. Rxe2 {[%emt 0:00:00]} dxe2 {[%emt 0:00:20]} 45. Kf2 {[%emt 0:00:00]} Qd1 {[%emt 0:00:18]} 46. Qd2 {[%emt 0:00:00]} Qf1+ {[%emt 0:00:12] Double Attack} 47. Kg3 {[%emt 0:00:00]} e1=Q+ {[%emt 0:00:22]} 0-1

[Event "WCCC U10 2019"]
[Site "Weifang"]
[Date "2019.08.29"]
[Round "8.9"]
[White "Zhang, Lichen"]
[Black "Lu, Miaoyi"]
[Result "1/2-1/2"]
[ECO "D10"]
[WhiteElo "1482"]
[BlackElo "1950"]
[Annotator "NA"]
[PlyCount "182"]
[EventDate "2019.08.21"]
[EventType "swiss"]
[EventCountry "CHN"]
[SourceTitle "playchess.com"]
[Source "ChessBase"]
[SourceQuality "1"]
[TimeControl "40/5400+30:1800+30"]

1. c4 {[%emt 0:00:00]} c6 {[%emt 0:00:00]} 2. d4 {[%emt 0:00:00]} d5 {[%emt 0:00:00]} 3. cxd5 {[%emt 0:00:11]} cxd5 {[%emt 0:00:00]} 4. Bf4 {[%emt 0:00:09]} Nf6 {[%emt 0:00:00]} 5. Nc3 {[%emt 0:00:07]} Nc6 {[%emt 0:00:28]} 6. e3 {[%emt 0:00:17]} Bf5 {[%emt 0:00:09]} 7. Qb3 {[%emt 0:00:32]} Na5 {[%emt 0:00:11]} 8. Qa4+ {[%emt 0:00:22] D10: Slav Defence: 3 cxd5 (without early Nf3) and 3 Nc3} Bd7 {[%emt 0:00:04]} 9. Qc2 {[%emt 0:00:19]} e6 {[%emt 0:00:06]} 10. Bd3 {[%emt 0:00:54]} Nc6 {[%emt 0:00:35]} 11. a3 {[%emt 0:00:35]} Nh5 {[%emt 0:00:42]} 12. Nge2 $146 {[%emt 0:02:57]} ({Predecessor:} 12. Be5 Nxe5 13. dxe5 g6 14. Nf3 Be7 {1-0 (44) Ponomariov,R (2709)-Motylev,A (2663) Tallinn 2016}) 12... Nxf4 {[%emt 0:01:43]} 13. Nxf4 {[%emt 0:00:33]} Bd6 {[%emt 0:05:43]} 14. Nh5 {[%emt 0:02:09]} Qg5 {[%emt 0:04:55]} 15. Ng3 {[%emt 0:00:26]} h6 {[%emt 0:01:53]} 16. O-O {[%emt 0:01:01]} O-O {[%emt 0:02:45]} 17. f4 {[%emt 0:01:15]} Qe7 {[%emt 0:02:42]} 18. Qe2 {[%emt 0:08:08]} a6 {[%emt 0:04:48]} 19. Rae1 {[%emt 0:01:52]} Rac8 {[%emt 0:02:49]} 20. f5 {[%emt 0:04:30]} Bxg3 {[%emt 0:06:40]} 21. hxg3 {[%emt 0:00:43]} Qg5 {[%emt 0:09:33]} 22. g4 {[%emt 0:04:24]} Rce8 {[%emt 0:11:21]} 23. Qf3 {[%emt 0:02:08]} Bc8 {[%emt 0:07:17]} 24. Qg3 {[%emt 0:17:28]} exf5 {[%emt 0:04:11]} 25. Bxf5 {[%emt 0:01:10]} g6 {[%emt 0:04:19]} 26. Bxc8 {[%emt 0:02:15]} Rxc8 {[%emt 0:00:06]} 27. Rf4 {[%emt 0:05:49]} Kg7 {[%emt 0:06:10]} 28. Qf3 {[%emt 0:00:59]} (28. Ref1 $16) 28... Rcd8 $1 {[%emt 0:01:17]} 29. Rf1 {[%emt 0:00:25]} Rd7 {[%emt 0:03:25]} 30. Na4 {[%emt 0:01:06]} Nd8 {[%emt 0:03:10]} 31. Nc5 {[%emt 0:01:53]} Re7 {[%emt 0:01:34]} 32. e4 {[%emt 0:02:30]} ({Better is} 32. b4 $14) 32... b6 {[%emt 0:03:06]} 33. Nxa6 $2 {[%emt 0:05:50]} (33. exd5 $11 {and White has nothing to worry.} bxc5 34. dxc5) 33... Ne6 {[%emt 0:00:17]} 34. Rf6 {[%emt 0:00:20]} Nxd4 {[%emt 0:00:41]} 35. Qf2 {[%emt 0:00:53]} Qe5 {[%emt 0:02:08]} 36. Nb4 {[%emt 0:06:51]} Qxe4 $2 {[%emt 0:03:53]} (36... dxe4 $19 37. Qe3 Qc5) 37. Kh1 {[%emt 0:01:26]} Ne2 {[%emt 0:03:58]} 38. Nc6 {[%emt 0:03:06]} Qxg4 {[%emt 0:02:47]} 39. Rf3 {[%emt 0:00:37]} Rc7 {[%emt 0:01:52]} 40. Qxe2 {[%emt 0:03:28]} Qh5+ {[%emt 0:00:08]} 41. Kg1 {[%emt 0:30:03]} Rxc6 {[%emt 0:30:09]} 42. Qe7 {[%emt 0:00:12]} g5 {[%emt 0:02:20]} 43. Qe5+ {[%emt 0:00:19]} Kg8 {[%emt 0:00:00]} 44. Qxd5 {[%emt 0:00:00]} Rc2 {[%emt 0:00:00]} 45. Qb3 {[%emt 0:00:00]} Qg6 {[%emt 0:00:00]} 46. Rxf7 {[%emt 0:00:00]} Rxf7 {[%emt 0:00:00]} 47. Rxf7 {[%emt 0:00:00]} Rxg2+ {[%emt 0:00:00]} 48. Kxg2 {[%emt 0:00:00]} Qxf7 {[%emt 0:00:00]} 49. Qxb6 {[%emt 0:00:00]} Qd5+ {[%emt 0:00:00]} 50. Kg3 {[%emt 0:00:00]} Kg7 {[%emt 0:00:00]} 51. Qc7+ {[%emt 0:00:00]} Kg6 {[%emt 0:00:00]} 52. Qc2+ {[%emt 0:00:00]} Kf6 {[%emt 0:00:43]} 53. Qf2+ {[%emt 0:00:00]} Kg7 {[%emt 0:01:03]} 54. Qa7+ {[%emt 0:00:00]} Kg6 {[%emt 0:00:29]} 55. Qb6+ {[%emt 0:00:00]} Kh5 {[%emt 0:00:35]} 56. Qe3 {[%emt 0:00:00]} Qd6+ {[%emt 0:02:47]} 57. Kg2 {[%emt 0:00:00]} g4 {[%emt 0:00:40]} 58. Qe8+ {[%emt 0:00:00]} Kh4 {[%emt 0:00:46]} 59. Qe1+ $11 {[%emt 0:00:00]} Kg5 {[%emt 0:00:32]} 60. Qe3+ {[%emt 0:00:00]} Kf5 {[%emt 0:00:38]} 61. Qf2+ {[%emt 0:00:00]} Kg6 {[%emt 0:00:46]} 62. Qc2+ {[%emt 0:00:00]} Kg5 {[%emt 0:00:15]} 63. Qc1+ {[%emt 0:00:00]} Kh5 {[%emt 0:00:41]} 64. Qh1+ {[%emt 0:00:00]} Kg6 {[%emt 0:00:28]} 65. Qc1 {[%emt 0:00:00]} Qd5+ {[%emt 0:00:52]} 66. Kh2 {[%emt 0:00:22]} Qe5+ {[%emt 0:00:29]} 67. Kg2 {[%emt 0:00:11]} Qe2+ {[%emt 0:00:32]} 68. Kg1 {[%emt 0:00:51]} g3 {[%emt 0:00:39]} 69. Qc6+ {[%emt 0:00:07]} Kg5 {[%emt 0:00:15]} 70. Qd5+ {[%emt 0:00:39]} Kf4 {[%emt 0:00:25]} 71. Qf7+ {[%emt 0:02:20]} Kg4 {[%emt 0:00:45]} 72. Qg6+ {[%emt 0:00:19]} Kh3 {[%emt 0:00:23]} 73. Qxh6+ {[%emt 0:00:08]} Kg4 {[%emt 0:00:02]} 74. Qg6+ {[%emt 0:00:17]} Kh3 {[%emt 0:00:26]} 75. Qf5+ {[%emt 0:00:18]} Kh4 {[%emt 0:00:07]} 76. Qf4+ {[%emt 0:00:36]} Kh3 {[%emt 0:00:03]} 77. Qh6+ {[%emt 0:00:19]} Kg4 {[%emt 0:00:03]} 78. Qg6+ {[%emt 0:00:15]} Kh3 {[%emt 0:00:05]} 79. Qf5+ {[%emt 0:00:16]} Kh4 {[%emt 0:00:02]} 80. Qf6+ {[%emt 0:00:12]} Kh3 {[%emt 0:00:37]} 81. Qf5+ {[%emt 0:00:28]} Kh4 {[%emt 0:00:03]} 82. Qf4+ {[%emt 0:00:40]} Kh3 {[%emt 0:00:02]} 83. Qf5+ {[%emt 0:00:05]} Kh4 {[%emt 0:00:03]} 84. Qf4+ {[%emt 0:00:08]} Kh3 {[%emt 0:00:03]} 85. Qf5+ {[%emt 0:00:16]} Kh4 {[%emt 0:00:03]} 86. Qf4+ {[%emt 0:00:34]} Kh3 {[%emt 0:01:02]} 87. Qh6+ {[%emt 0:00:07]} Kg4 {[%emt 0:00:04]} 88. Qg6+ {[%emt 0:00:11]} Kh3 {[%emt 0:00:05]} 89. Qh6+ {[%emt 0:00:13]} Kg4 {[%emt 0:00:04]} 90. Qg6+ {[%emt 0:00:09]} Kh3 {[%emt 0:00:05]} 91. Qh6+ {[%emt 0:00:06]} Kg4 {[%emt 0:00:04]} 1/2-1/2

[Event "WCCC U10 2019"]
[Site "Weifang"]
[Date "2019.08.29"]
[Round "8.10"]
[White "Sodbileg, Uranjargal"]
[Black "Kong, Xiangrui"]
[Result "1-0"]
[ECO "C06"]
[WhiteElo "1419"]
[BlackElo "1889"]
[Annotator "NA"]
[PlyCount "85"]
[EventDate "2019.08.21"]
[EventType "swiss"]
[EventCountry "CHN"]
[SourceTitle "playchess.com"]
[Source "ChessBase"]
[SourceQuality "1"]
[TimeControl "40/5400+30:1800+30"]

1. e4 {[%emt 0:00:00]} e6 {[%emt 0:00:00]} 2. d4 {[%emt 0:00:00]} d5 {[%emt 0:00:00]} 3. Nd2 {[%emt 0:00:00]} Nf6 {[%emt 0:00:00]} 4. e5 {[%emt 0:00:20]} Nfd7 {[%emt 0:00:00]} 5. Bd3 {[%emt 0:00:17]} c5 {[%emt 0:00:00]} 6. c3 {[%emt 0:00:06]} Nc6 {[%emt 0:00:00]} 7. Ne2 {[%emt 0:00:29]} cxd4 {[%emt 0:00:02]} 8. cxd4 {[%emt 0:00:13]} f6 {[%emt 0:00:01]} 9. exf6 {[%emt 0:00:32]} Nxf6 {[%emt 0:00:05]} 10. Nf3 {[%emt 0:00:22]} Bd6 {[%emt 0:00:08]} 11. O-O {[%emt 0:01:05]} O-O {[%emt 0:00:03]} 12. Bf4 {[%emt 0:07:32]} Bxf4 {[%emt 0:00:10]} 13. Nxf4 {[%emt 0:00:12]} Ne4 {[%emt 0:00:08]} 14. g3 {[%emt 0:02:12]} Ng5 {[%emt 0:00:48]} 15. Nxg5 {[%emt 0:09:19]} Qxg5 {[%emt 0:00:05]} 16. Ne2 {[%emt 0:01:55]} e5 {[%emt 0:01:11]} 17. dxe5 {[%emt 0:00:46]} Qxe5 {[%emt 0:00:31]} 18. Qd2 {[%emt 0:01:39]} (18. Nf4 $14) 18... Bg4 {[%emt 0:08:52]} 19. f4 {[%emt 0:16:12]} Qh5 {[%emt 0:03:40]} 20. Rf2 {[%emt 0:02:44]} Kh8 {[%emt 0:12:24]} 21. Rc1 {[%emt 0:06:28]} Ne5 {[%emt 0:10:54]} 22. Nd4 {[%emt 0:05:03]} Nxd3 {[%emt 0:02:28]} 23. Qxd3 {[%emt 0:00:17]} Rac8 {[%emt 0:03:35]} 24. Rc3 {[%emt 0:04:37]} Rxc3 {[%emt 0:01:40]} 25. bxc3 {[%emt 0:00:19]} Rc8 {[%emt 0:01:36]} 26. Qd2 {[%emt 0:06:37]} Bf5 {[%emt 0:09:34]} 27. Nxf5 {[%emt 0:00:25]} Qxf5 {[%emt 0:00:03]} 28. Re2 {[%emt 0:00:10]} Rd8 {[%emt 0:17:14]} 29. Re7 {[%emt 0:03:34]} Qb1+ {[%emt 0:10:57]} 30. Kg2 {[%emt 0:01:11]} h6 {[%emt 0:01:59]} 31. Qf2 {[%emt 0:04:19]} Rc8 {[%emt 0:04:47]} 32. Qd4 {[%emt 0:03:24]} Qb2+ {[%emt 0:01:08]} 33. Kh3 {[%emt 0:00:43]} Qxc3 {[%emt 0:00:54]} 34. Qxd5 {[%emt 0:00:49]} Rb8 {[%emt 0:01:38]} 35. f5 {[%emt 0:00:56]} Qf6 {[%emt 0:01:24]} 36. Re2 {[%emt 0:07:43]} Rd8 {[%emt 0:01:11]} 37. Qf3 {[%emt 0:00:25]} b6 {[%emt 0:00:21]} 38. a4 {[%emt 0:00:58]} Rd4 {[%emt 0:00:45]} 39. Re6 {[%emt 0:00:55]} Qf7 {[%emt 0:00:25]} 40. Rc6 {[%emt 0:01:57]} Rd2 {[%emt 0:05:22]} 41. Qg4 {[%emt 0:36:54]} Qd7 {[%emt 0:07:33]} 42. Qg6 {[%emt 0:00:00]} Rf2 $18 {[%emt 0:12:53]} (42... Re2 $11) 43. Re6 {[%emt 0:00:00]} 1-0

[Event "WCCC U10 2019"]
[Site "Weifang"]
[Date "2019.08.30"]
[Round "9.1"]
[White "Sodbilegt, Naranbold"]
[Black "Ilamparthi A R"]
[Result "1/2-1/2"]
[ECO "E91"]
[WhiteElo "1458"]
[BlackElo "1984"]
[Annotator "NA RC"]
[PlyCount "88"]
[EventDate "2019.08.21"]
[EventType "swiss"]
[EventCountry "CHN"]
[SourceTitle "playchess.com"]
[Source "ChessBase"]
[SourceQuality "1"]
[TimeControl "40/5400+30:1800+30"]

{[%evp 12,86,72,32767,32767,32767,47,45,53,32767,82,40,59,99,80,78,128,122,178,148,168,32767,32767,203,195,197,221,212,204,84,95,131,32767,57,60,21,12,17,0,1,39,14,26,29,32767,27,18,32767,0,0,58,4,32767,32767,32767,32767,32767,32767,0,-36,32767,32767,0,-54,0,0,0,0,0,0,0,0,0,0,0,0,0]} 1. d4 {[%emt 0:00:00]} Nf6 {[%emt 0:00:00]} 2. c4 {[%emt 0:00:00]} d6 {[%emt 0:00:00]} 3. Nc3 {[%emt 0:00:17]} g6 {[%emt 0:00:07]} 4. e4 {[%emt 0:00:16]} Bg7 {[%emt 0:00:05]} 5. Nf3 {[%emt 0:00:06]} O-O {[%emt 0:00:10]} 6. Be2 {[%emt 0:00:17]} Nc6 {[%emt 0:00:43]} 7. d5 {[%emt 0:05:09]} Nb8 {[%emt 0:00:15]} 8. Be3 {[%emt 0:01:07] E91: King's Indian: Classical: 6 Be2, unusual replies including 6...c5 and 6...Bg4} (8. h3 a5 9. O-O Na6 10. Be3 Nd7 11. Nd4 Ndc5 12. Qd2 e5 13. dxe6 fxe6 14. Ndb5 b6 15. Rad1 Bb7 16. f3 {0-1 (52) Andersen,M (2605)-Iniyan,P (2462) Boeblingen 2018}) 8... a5 {[%emt 0:01:45]} 9. O-O {[%emt 0:01:53]} Na6 {[%emt 0:01:37]} 10. Nd2 {[%emt 0:06:18]} e5 {[%emt 0:03:53]} 11. a3 {[%emt 0:04:13]} Ne8 {[%emt 0:03:30]} 12. b4 {[%emt 0:02:12]} f5 {[%emt 0:00:06]} 13. f3 {[%emt 0:01:13]} f4 {[%emt 0:00:10]} (13... b6 $142) 14. Bf2 {[%emt 0:00:10]} g5 $146 {[%emt 0:00:10]} ({Predecessor:} 14... axb4 15. axb4 Bd7 {1-0 (32) Duarte,F-Mercadante,R Tijuca 1978}) 15. c5 {[%emt 0:03:23]} h5 {[%emt 0:12:42]} 16. Nc4 {[%emt 0:04:38]} Rf6 {[%emt 0:01:49]} 17. cxd6 {[%emt 0:07:03]} cxd6 {[%emt 0:00:16]} 18. Nb6 {[%emt 0:03:36]} Rb8 {[%emt 0:00:46]} 19. bxa5 {[%emt 0:03:03]} Rg6 {[%emt 0:01:03]} 20. h3 {[%emt 0:08:31]} (20. Nca4 $18 {is more deadly.}) 20... Nf6 {[%emt 0:04:20]} 21. Nxc8 {[%emt 0:08:38]} Rxc8 {[%emt 0:00:10] [#]} 22. Rc1 {[%emt 0:03:19]} ({White should play} 22. Na4 $1 $16) 22... g4 {[%emt 0:09:33]} 23. fxg4 {[%emt 0:02:41]} (23. Bb6 $5 {[%cal Rb6d8]} Qd7 24. Bb5 $16) 23... hxg4 {[%emt 0:00:06]} 24. Bxg4 {[%emt 0:00:53]} Nxg4 {[%emt 0:00:06]} 25. hxg4 {[%emt 0:00:25]} Qd7 {[%emt 0:01:23]} 26. Qe2 {[%emt 0:05:48]} Rf8 {[%emt 0:02:34]} 27. Bb6 {[%emt 0:02:34]} Rxg4 {[%emt 0:01:05]} 28. Rf3 {[%emt 0:02:03]} Rf6 {[%emt 0:00:59]} 29. Rc2 {[%emt 0:03:16]} Rh6 {[%emt 0:01:58]} 30. Nd1 {[%emt 0:03:00]} Bf6 {[%emt 0:01:30]} (30... Bf8 $11) 31. Nf2 {[%emt 0:01:54]} ({White should play} 31. Qc4 $16) 31... Rgg6 {[%emt 0:05:16]} 32. Rcc3 {[%emt 0:03:54]} Bh4 {[%emt 0:03:05]} 33. Rh3 {[%emt 0:03:20]} Qg7 {[%emt 0:07:26]} 34. Qf3 {[%emt 0:02:56]} Rxg2+ {[%emt 0:05:46]} 35. Kf1 {[%emt 0:03:42]} Rg3 {[%emt 0:03:38]} 36. Rxg3 {[%emt 0:00:45]} Bxg3 {[%emt 0:00:10]} 37. Ke2 {[%emt 0:02:17]} Nc5 {[%emt 0:06:45]} 38. Bxc5 {[%emt 0:02:34]} dxc5 {[%emt 0:00:05]} 39. Qg4 {[%emt 0:00:39]} ({Avoid the trap} 39. Rxc5 $2 Rh2 $19) 39... Rh2 {[%emt 0:00:44]} 40. Qc8+ {[%emt 0:00:39]} Kh7 {[%emt 0:00:16]} 41. Rb3 {[%emt 0:07:25]} Rxf2+ {[%emt 0:05:09]} 42. Kd1 $1 {[%emt 0:00:51]} Rf1+ {[%emt 0:01:09]} 43. Kc2 {[%emt 0:01:00]} Rf2+ $11 {[%emt 0:00:13]} 44. Kd1 {[%emt 0:01:42]} Rf1+ {[%emt 0:00:08]} 1/2-1/2